{"text_format":"1","workbook":"xlsx","n_sheets":3,"sheets":["data","text","jobsheet"],"not_rendered":{"charts":0,"images":12,"macros":1,"external_links":0,"defined_names":3,"comments":0,"pivot_tables":0},"unopened":[],"bounds":{"document_bytes":16777216,"sheet_cells":100000,"rows_first":2000,"rows_last":500,"rows_between":2000,"halvings":0,"cell_chars":16384,"cell_head_chars":4096},"cells_cut":0,"cells_raw":0,"read":"whole","date_system":"1900"}

{"sheet":"data","index":0,"n_rows":119,"n_cols":6,"rows_kept":119,"cut":false,"hidden":true,"merged":[]}
["Participant",null,"Project or Contract"]
["Location",null,"County"]
["Farm Number",null,"Tract Number"]
[null,null,null,null,1]
[null,"Select ",null,null,2]
["x","CP 4D",null,null,3]
[null,"CP 22",null,null,4]
[null,"CP 23",null,null,5]
[null,"CP 23A",null,null,6]
[null,"CP 29",null,null,7]
[null,"CP 30",null,null,8]
[null,null,null,null,9]
[null,null,null,null,10]
[]
[null,"Over-seeding Planned"]
["Mowing Pattern (Check 1) "]
[null,"Entire Acreage"]
[null,"Alternating row"]
[null,"Alternating block",null,null,"10 yrs to 10 yrs, 11 months           "]
[null,"Tree / Shrub Area  ",null,null,"11 yrs to 11 yrs, 11 months           "]
[null,"in year 4 or 5, but before end of year 6           ",null,null,"12 yrs to 12 yrs, 11 months           "]
[null,"in year 4 or 5, but before end of year 6",null,null,"13 yrs to 13 yrs, 11 months           "]
[null,"in year 4 or 5, but before end of year 6",null,null,"14 yrs to 14 yrs, 11 months           "]
[null,"in year 4 or 5, but before end of year 9           ",null,null,"15 years                                             "]
[null,"in year 4 or 5, but before end of year 9           ",null,null,"Re-enrollment contract"]
[null,"in year 4 or 5, but before end of year 9           "]
[{"$f":"data!E47","v":0},"Not Applicable"]
[null,"before end of year 7"]
[null,"before end of year 8"]
[null,"before end of year 9"]
[null,"before end of year 10"]
[null,"before end of year 11"]
[null,"before end of year 12"]
[null,"at re-enrollment"]
[]
[null,{"$f":"indirect","v":{"$error":"#NAME?"}}]
[]
[]
[null,null,null,"Mowing Method","MowingImageLookup"]
[null,null,1,"Entire Acreage"]
[null,null,2,"Alternating row"]
[null,null,3,"Alternating block"]
[null,null,4,"Tree / Shrub Area  "]
[]
[]
[]
[]
[]
[]
[]
[null,null,"Select Purpose",null,null,"Select Mowing Height"]
["Select County",null,"Increase plant diversity.",null,null,"Mow cool-season grasses no lower than 6 inches."]
["Adams",null,"Enhance wildlife habitat.",null,null,"Mow warm-season grasses no lower than 8 inches."]
["Allegheny"]
["Armstrong"]
["Beaver"]
["Bedford"]
["Berks"]
["Blair"]
["Bradford"]
["Bucks"]
["Butler"]
["Cambria"]
["Cameron"]
["Carbon"]
["Centre"]
["Chester"]
["Clarion"]
["Clearfield"]
["Clinton"]
["Columbia"]
["Crawford"]
["Cumberland"]
["Dauphin"]
["Delaware"]
["Elk"]
["Erie"]
["Fayette"]
["Forest"]
["Franklin"]
["Fulton"]
["Greene"]
["Huntingdon"]
["Indiana"]
["Jefferson"]
["Juniata"]
["Lackawanna"]
["Lancaster"]
["Lawrence"]
["Lebanon"]
["Lehigh"]
["Luzerne"]
["Lycoming"]
["McKean"]
["Mercer"]
["Mifflin"]
["Monroe"]
["Montgomery"]
["Montour"]
["Northampton"]
["Northumberland"]
["Perry"]
["Philadelphia"]
["Pike"]
["Potter"]
["Schuylkill"]
["Snyder"]
["Somerset"]
["Sullivan"]
["Susquehanna"]
["Tioga"]
["Union"]
["Venango"]
["Warren"]
["Washington"]
["Wayne"]
["Westmoreland"]
["Wyoming"]
["York"]

{"sheet":"text","index":1,"n_rows":3,"n_cols":15,"rows_kept":3,"cut":false,"hidden":true,"merged":[[0,0,0,13]]}
["CP"]
[1,2,"4D","8A",9,"15A",21,22,23,"23A",29,30,33,42,"comment"]
[null,null,null,"x",null,"x","x",null,null,null,null,null,null,null,"May receive a one-time Prescribed Mowing of their entire acreage.  "]

{"sheet":"jobsheet","index":2,"n_rows":106,"n_cols":40,"rows_kept":106,"cut":false,"hidden":false,"merged":[[48,2,49,3],[55,2,56,3],[2,10,2,11],[4,10,4,11],[68,3,68,13],[6,6,6,9],[8,2,8,11],[23,8,23,12],[24,8,24,12],[27,2,27,13],[31,2,31,13],[37,7,37,8],[36,8,36,13],[40,12,40,13],[41,3,41,13],[42,4,42,8],[45,2,45,12],[46,2,46,12],[14,2,14,13],[15,2,15,13],[17,2,17,13],[21,2,21,13],[18,3,18,13],[2,4,2,7],[3,4,3,7],[4,4,4,7],[87,10,88,13],[89,10,89,13],[56,10,56,11],[33,3,33,13],[2,2,2,3],[3,2,3,3],[23,2,23,7],[22,2,22,6],[20,2,20,4],[4,2,4,3],[10,2,10,3],[11,2,11,3],[12,2,12,3],[90,10,90,13],[25,2,26,11],[64,2,64,12],[63,2,63,12],[66,2,66,12],[67,2,67,12],[32,2,32,7],[30,2,30,13],[87,3,88,3],[28,2,28,13],[47,2,47,3],[49,10,49,11],[49,4,49,5],[70,2,73,13],[44,2,44,6],[29,2,29,13],[102,2,104,13],[87,8,87,9],[92,10,92,13],[93,10,93,13],[94,10,94,13],[95,10,95,13],[96,10,96,13],[97,10,97,13],[98,10,98,13],[101,2,101,5],[86,2,87,2],[91,10,91,13],[87,5,88,5],[87,6,88,6],[87,7,88,7],[87,4,88,4]]}
[]
[]
[null,null,"Participant:",null,null,null,null,null,null,"FSA Contract:  ",null,null,null,null,null,null,null,null,null,null,null,null,null,"Enhance wildlife habitat by increasing forb diversity."]
[null,null,"Location:",null,null,null,null,null,null,"County:  "]
[null,null,"Farm Number:",null,null,null,null,null,null,"Tract Number:  "]
[]
[null,null,null,null,null,null,"Applicable CREP or CRP Activity:"]
[null,null,"Purpose:  "]
[null,null,"Interplanting is a Mid-Contract Management (MCM) activity intended to alter and/or increase the wildlife habitat value and plant diversity in CRP and CREP tree and shrub plantings.  "]
[null,null,"For this site, Interplanting will:   (select all that apply)   "]
[null,null,"1."]
[null,null,"2."]
[null,null,"3."]
[null,null,"Description:"]
[null,null,"CRP and CREP tree plantings provide valuable wildlife habitat, but over time they suffer tree mortality, become less diverse and support fewer types of wildlife.  Periodic interplanting helps CRP and CREP tree plantings maintain desired amounts and types of trees and shrubs that provide food and cover for wildlife.  Existing CRP or CREP acres with fewer than 3 species of trees and shrubs OR stocking rates of less than 200 shrubs or trees per acre may be Interplanted as a MCM.  Interplanting relying on natural regneration or volunteer plants cannot be cost-shared; new plantings of acceptable planting materials must be used if CRP or CREP cost-share funds are desired.  Natural regeneration or volunteer plants may qualify as unfunded Interplanting when adequately documented by NRCS.  Interplanting, as a periodic MCM activity that occurs roughly once every five years, does not reduce or replace the participant's responsibility for maintaining 70% tree/shrub survival throughout their CRP or CREP contract.  Interplanting will only enhance an existing planting, not replace lost trees or shrubs to maintain basic contract compliance. "]
[null,null,"Interplanting differs greatly from typical tree and shrub plantings through CRP and CREP.  Because Interplanting occurs among or underneath existing trees and shrubs, many planning variables must be considered.  Plant species selection may need to include shade-tolerant species, species which mature and produce fruit or nuts relatively quickly, species that mature at relatively low heights, and/or species that provide a wildlife benefit currently missing from the CRP or CREP planting.  Most importantly, species selection should match site conditions (wet or dry) and complement the existing planting.  "]
[null,null,"Practice Guidance:  "]
[null,null,"NRCS will conduct a site visit prior to the implementation of the Interplanting MCM, to determine the amount of Interplanting needed, the species to Interplant, and any additional management activities needed to support the Interplanting.  NRCS guidance may vary, based on site-specific conditions."]
[null,null,"SITE-                   SPECIFIC NOTES","Enter text here"]
[]
[null,null,"Interplanting Timeframes"]
[null,null,"Complete the Interplanting MCM by the date specified in the Conservation Plan and in Table 1 below.  Interplanting shall occur between August 1 and August 31, to encourage and protect the nesting and brood-rearing habitat that CRP and CREP  fields provide from April 1 through July 31.  Interplanting may occur outside of August, on a case-by-case basis, but only if recomended by NRCS and pre-approved by the Farm Service Agency (FSA).\n\nThe following guidance applies to cost-shared Prescribed Mowing activities during the CRP/CREP contract:\n"]
[null,null,"Select the duration of the CRP/CREP Contract:",null,null,null,null,null,1]
[null,null,"The one required Interplanting should occur in: ",null,null,null,null,null,{"$f":"IF(I23=1,data!B21,IF(jobsheet!I23=2,data!B22,IF(I23=3,data!B23,IF(I23=4,data!B24,IF(jobsheet!I23=5,data!B25,IF(jobsheet!I23=6,data!B26,IF(jobsheet!I23=7,data!B27)))))))","v":"in year 4 or 5, but before end of year 6           "}]
[null,null,"And if needed, additional Interplanting* may occur:",null,null,null,null,null,{"$f":"IF(I23=1,data!B28,IF(jobsheet!I23=2,data!B29,IF(I23=3,data!B30,IF(I23=4,data!B31,IF(jobsheet!I23=5,data!B32,IF(jobsheet!I23=6,data!B33,IF(jobsheet!I23=7, data!B34)))))))","v":"before end of year 7"}]
[null,null,"*FSA may cost-share additional Interplanting activities, if funds remain in the CRP/CREP contract; contact FSA for further information prior to conducting any additional Interplanting.  Note that the guidance above applies to cost-shared Interplantng; unfunded/non-cost-shared Interplanting can occur in any year of the CRP/CREP contract, if recommended by NRCS and pre-approved by FSA."]
[]
[]
[null,null,"Site Preparations prior to Interplanting:"]
[null,null,"Apply appropriate herbicide(s) to Interplanting acres prior to planting, to remove competing vegetation.  Use non-selective herbicides (like glyphosate) to remove all existing vegetation.  Extremely vigorous plants may require multiple treatments: apply herbicide(s) in early fall of the year prior to planting, followed by another spring application of herbicides at least two weeks prior to planting.  "]
[null,null,"       Where weed pressure is NOT a concern, spray only the “spots” for tree and shrub planting.  Reduced spraying, on sites with little or no weed pressure, retains as much naturally-occurring vegetation (herbaceous and woody) as possible.  Treat the row areas with a systemic burn-down herbicide like glyphosate, to remove all vegetation.  Always follow herbicide label instructions for rate, timing, and methods of herbicide application(s).  Take special care to avoid herbicide carryover that may negatively affect the CRP or CREP planting. ",null,null,null,null,null,null,null,null,null,null,null,null,null,null,null,null,null,null,null,null,null,null,"10 yrs to 10 yrs, 11 months           "]
[null,null,"      Where weed pressure IS a concern, spray the entire Interplanting acreage.  Treat the entire area with herbicides, to reduce weed pressure or competing vegetation that will inhibit planting or threaten the successful establishment of the trees and shrubs.  If possible, spray rows with a systemic burn-down herbicide like glyphosate, but spray between-row areas with a broadleaf-specific herbicide like 2-4,D, to retain any existing grasses.  Always follow herbicide label instructions for rate, timing, and methods of herbicide application(s).  Take special care to avoid herbicide carryover that may negatively affect the CRP or CREP planting.",null,null,null,null,null,null,null,null,null,null,null,null,null,null,null,null,null,null,null,null,null,null,"11 yrs to 11 yrs, 11 months           "]
[null,null,"       No site preparation needed (extremely rare)."]
[null,null,"SITE-                   SPECIFIC NOTES","Enter text here"]
[]
[null,null,"Plant Materials, Spacing and Quantities:"]
[null,null,"LIVE","Interplanting 2' long live stakes on",null,null,null,null,"acres, at roughly 350 live stakes per acre,"]
[null,null,"STAKES /","   will require at least ",null,null,{"$f":"H37*1750","v":0},"live stakes."]
[null,null,"CUTTINGS","   * see accompanying map for area(s) to be planted with live stakes or cuttings."]
[null,null,"TREES /","Interplant trees and shrubs (bareroot, containerized, or ball-and burlap planting stock) "]
[null,null,"SHRUBS","   on",null,"acres, between existing trees and shrubs.  Add roughly "]
[null,null,null,"   per acre, to reach a final density of at least 200 plants/acre."]
[null,null,null,{"$f":"ROUND((E41*L41),0)","v":0},"trees and shrubs will be required."]
[]
[null,null,"Tree and Shrub Species"]
[null,null,"Select species adapted to specific site's conditions, which provide wildlife habitat or food"]
[null,null,"  sources currently not present on the site, and complement or enhance the current CRP or"]
[null,null,"  CREP planting."]
[null,null,"Select number of Tree Species"]
[null,null,null,null,"Tree species",null,null,null,null,null,"Quantity"]
[null,null,3]
[{"$f":"IF($C$51<2,\"No\",\"Yes\")","v":"Yes"}]
[{"$f":"IF($C$51<3,\"No\",\"Yes\")","v":"Yes"}]
[{"$f":"IF($C$51<4,\"No\",\"Yes\")","v":"No"}]
[{"$f":"IF($C$51<5,\"No\",\"Yes\")","v":"No"}]
[null,null,"Select number of Shrub Species"]
[null,null,null,null,null,null,null,null,null,null,"Quantity"]
[null,null,3]
[{"$f":"IF($C$58<2,\"No\",\"Yes\")","v":"Yes"}]
[{"$f":"IF($C$58<3,\"No\",\"Yes\")","v":"Yes"}]
[{"$f":"IF($C$58<4,\"No\",\"Yes\")","v":"No"}]
[{"$f":"IF($C$58<5,\"No\",\"Yes\")","v":"No"}]
[]
[null,null,"Establishment of Interplanted trees and shrubs"]
[null,null,"Follow planting and establishment guidance given in the attached Planting Guide for Riparian Forest Buffers.  While the document is titled for riparian buffers, the planting and establishment guidance offered there applies to any/all CRP and CREP tree and shrub plantings."]
[]
[null,null,"Operation and Maintenance of Interplanted trees and shrubs"]
[null,null,"Upon successful establishment of your trees and shrubs (either three years after planting or documentation by USDA personnel, whichever comes first), follow the Operation and Maintenance guidelines provided in your CRP or CREP Plan for the original tree- planting practice."]
[null,null,"SITE-                   SPECIFIC NOTES","Enter text here"]
[]
[null,null,"By signing this document, the participant agrees to implement the Interplanting MCM following the technical recommendations provided by NRCS and approved by FSA.    The participant is aware that NRCS must conduct a site visit prior to the Interplanting, to determine the need for planting and provide any updated technical recommendations.  Any changes to the Interplanting MCM activity must receive FSA approval prior to implementation."]
[]
[]
[]
[]
[]
[]
[]
[]
[]
[]
[]
[]
[]
[]
[null,null,"Table 1: Interplanting Schedule",null,null,null,null,null,"(items in grey are for USDA reporting only)"]
[null,null,"Select number of fields"]
[null,null,null,"Field","Acres Planned","Year Planned","Acres Applied","Year Applied","Certified By:",null,"Comments",null,null,null,null,null,null,null,null,null,null,null,null,null,null,null,null,null,null,null,null,null,null,null,null,null,null,null,{"$f":"ROUNDUP(((#REF!*194)*0.3),0)","v":{"$error":"#REF!"}},"shrubs."]
[null,null,10,null,null,null,null,null,"NRCS / TSP","Participant"]
[null,null,null,1,null,2018]
[{"$f":"IF($C$89<2,\"No\",\"Yes\")","v":"Yes"},null,null,2]
[{"$f":"IF($C$89<3,\"No\",\"Yes\")","v":"Yes"},null,null,3]
[{"$f":"IF($C$89<4,\"No\",\"Yes\")","v":"Yes"},null,null,4]
[{"$f":"IF($C$89<5,\"No\",\"Yes\")","v":"Yes"},null,null,5]
[{"$f":"IF($C$89<6,\"No\",\"Yes\")","v":"Yes"},null,null,6]
[{"$f":"IF($C$89<7,\"No\",\"Yes\")","v":"Yes"},null,null,7]
[{"$f":"IF($C$89<8,\"No\",\"Yes\")","v":"Yes"},null,null,8]
[{"$f":"IF($C$89<9,\"No\",\"Yes\")","v":"Yes"},null,null,9]
[{"$f":"IF($C$89<10,\"No\",\"Yes\")","v":"Yes"},null,null,10]
[]
[]
[null,null,"Certification Statement:"]
[null,null,"I certify that implementation of this conservation practice is complete, meets criteria for the stated purpose(s), and meets the NRCS conservation practice standard and specifications."]
[]
[]
[null,null,"Certified By:"]